bitfinex-derivatives/quotes_SOLF0:USTF0_20260306
["timestamp","ask_amount","ask_price","bid_price","bid_amount"]
[1772779390547,3.70631783,88.106,88.062,3.9050095]
[1772779390955,2.99760299,88.11,88.062,3.9050095]
[1772779390956,3.70631783,88.104,88.062,3.9050095]
[1772779391258,3.70631783,88.099,88.051,10.22]
[1772779391447,3.70631783,88.097,88.051,10.22]
[1772779391653,3.70631783,88.095,88.051,14.1250095]
[1772779391854,3.70631783,88.095,88.052,3.9050095]
[1772779392647,3.70631783,88.095,88.054,10.22]
[1772779393055,3.70631783,88.095,88.054,14.1250095]
[1772779393254,3.70631783,88.095,88.055,3.9050095]
[1772779393852,3.70631783,88.109,88.057,3.9050095]
[1772779394056,3.70631783,88.107,88.057,3.9050095]
[1772779394350,12.33412654,88.106,88.057,3.9050095]
[1772779394556,2.99760299,88.1,88.057,3.9050095]
[1772779394756,2.99760299,88.1,88.058,10.22]
[1772779394964,2.99760299,88.1,88.059,3.9050095]
[1772779395461,3.70631783,88.105,88.059,3.9050095]
[1772779395653,3.70631783,88.105,88.061,3.9050095]
[1772779396055,8.62769698,88.104,88.061,3.9050095]
[1772779396255,3.70631783,88.105,88.061,3.9050095]
[1772779396859,12.33395434,88.104,88.061,3.9050095]
[1772779397059,3.70631783,88.104,88.061,3.9050095]
[1772779400054,10.214,88.103,88.061,3.9050095]
[1772779400260,13.92031783,88.103,88.061,3.9050095]
[1772779400759,3.70631783,88.102,88.061,3.9050095]
[1772779408760,3.70631783,88.102,88.063,10.219]
[1772779408956,3.70631783,88.102,88.064,3.9050095]
[1772779409358,3.70631783,88.137,88.091,3.9050095]
[1772779409562,3.70631783,88.135,88.091,3.9050095]
[1772779409761,8.62579957,88.134,88.091,3.9050095]
[1772779409960,8.62579957,88.133,88.091,3.9050095]
[1772779410161,8.62579957,88.132,88.091,3.9050095]
[1772779410358,8.62579957,88.131,88.091,3.9050095]
[1772779410563,3.70631783,88.135,88.101,4.00516627]
[1772779410760,8.62359309,88.134,88.101,4.00516627]
[1772779410960,8.62359309,88.133,88.101,4.00516627]
[1772779411155,3.85730783,88.147,88.101,4.00516627]
[1772779411360,3.85730783,88.145,88.101,4.00516627]
[1772779411564,14.06530783,88.157,88.111,4.00516627]
[1772779411856,12.47870811,88.156,88.111,4.00516627]
[1772779412057,8.62140028,88.155,88.111,4.00516627]
[1772779412252,8.62140028,88.154,88.111,4.00516627]
[1772779412457,8.62140028,88.153,88.111,4.00516627]
[1772779412662,3.85730783,88.156,88.111,4.00516627]
[1772779412862,3.85730783,88.154,88.111,4.00516627]
[1772779413456,3.85730783,88.166,88.121,4.00516627]
[1772779413659,10.59728252,88.179,88.121,4.00516627]
[1772779413660,12.47043844,88.165,88.121,4.00516627]
[1772779413857,12.47043844,88.164,88.121,4.00516627]
[1772779414058,8.61313061,88.163,88.121,4.00516627]
[1772779414261,8.61313061,88.162,88.121,4.00516627]
[1772779414467,3.85730783,88.16,88.121,4.00516627]
[1772779414768,3.85730783,88.159,88.11,2.99889623]
[1772779414964,3.85730783,88.159,88.111,4.00516627]
[1772779415168,3.85730783,88.159,88.121,4.00516627]
[1772779415863,3.85730783,88.159,88.123,4.00516627]
[1772779418668,2.99889623,88.17,88.123,4.00516627]
[1772779418669,6.85620406,88.17,88.123,4.00516627]
[1772779419061,6.85620406,88.17,88.125,4.00516627]
[1772779419459,3.85730783,88.169,88.125,4.00516627]
[1772779419861,2.99889623,88.18,88.13,4.00516627]
[1772779420062,2.99889623,88.18,88.131,4.00516627]
[1772779420560,3.85730783,88.179,88.132,10.211]
[1772779421062,3.85730783,88.179,88.131,4.00516627]
[1772779421469,3.85730783,88.177,88.131,4.00516627]
[1772779422472,18.46071177,88.182,88.15,4.00516627]
[1772779423864,3.85730783,88.181,88.14,10.21]
[1772779424062,6.85620406,88.18,88.137,4.00516627]
[1772779424966,10.59728252,88.24,88.127,20.423]
[1772779425271,21.19252485,88.277,88.105,158.892]
[1772779425272,9.51687723,88.209,88.105,158.892]
[1772779425565,9.51687723,88.199,88.147,10.209]
[1772779425769,9.51687723,88.199,88.15,2.99889623]
[1772779426159,9.51687723,88.199,88.16,2.99889623]
[1772779429370,9.51687723,88.199,88.14,2.99889623]
[1772779430070,9.51687723,88.199,88.15,2.99889623]
[1772779434572,9.51687723,88.199,88.064,158.966]
[1772779434573,9.53350361,88.189,88.13,2.99889623]
[1772779435072,9.53350361,88.189,88.14,2.99889623]
[1772779435270,9.53350361,88.189,88.064,158.966]
[1772779435476,9.53350361,88.189,88.14,2.99889623]
[1772779436174,2.99889623,88.18,88.13,2.99889623]
[1772779436379,9.5293473,88.179,88.13,2.99889623]
[1772779437374,9.5293473,88.179,88.134,10.211]
[1772779438175,9.5293473,88.179,88.14,2.99889623]
[1772779438380,9.53721403,88.194,88.15,2.99889623]
[1772779438983,9.54143586,88.189,88.141,10.21]
[1772779440180,9.54143586,88.189,88.08,62.0]
[1772779440181,9.54143586,88.189,88.13,13.20989623]
[1772779440388,9.54143586,88.189,88.13,2.99889623]
[1772779441787,9.54143586,88.189,88.138,10.21]
[1772779443592,9.54143586,88.189,88.14,2.99889623]
[1772779448794,9.54143586,88.189,88.149,10.209]
[1772779449894,9.54143586,88.189,88.097,13.93603861]
[1772779449895,9.53326115,88.209,88.16,2.99889623]
[1772779450893,10.202,88.208,88.16,2.99889623]
[1772779451191,9.53043217,88.207,88.16,2.99889623]
[1772779451798,10.202,88.206,88.151,10.209]
[1772779451994,9.53043217,88.199,88.151,10.209]
[1772779452894,9.53043217,88.192,88.15,2.99889623]
[1772779454296,9.52949898,88.188,88.14,2.99889623]
[1772779454797,9.52949898,88.188,88.142,10.21]
[1772779455594,10.205,88.187,88.142,10.21]
[1772779455794,9.52400288,88.186,88.142,10.21]
[1772779456390,9.52400288,88.186,88.134,10.211]
[1772779456596,9.52400288,88.186,88.14,2.99889623]
[1772779457504,9.52400288,88.186,88.141,10.21]
[1772779459900,9.5231582,88.184,88.14,2.99889623]
[1772779460096,9.5231582,88.184,88.133,10.211]
[1772779460799,9.5231582,88.181,88.133,10.211]
[1772779462606,9.5231582,88.181,88.14,2.99322681]
[1772779464009,9.5231582,88.181,88.14,13.20322681]
[1772779465105,9.53937304,88.179,88.123,13.93603861]
[1772779465301,9.53937304,88.179,88.13,2.99322681]
[1772779465807,9.53937304,88.178,88.13,2.99322681]
[1772779466405,10.206,88.176,88.13,2.99322681]
[1772779466612,9.53937304,88.175,88.13,2.99322681]
[1772779467112,9.53937304,88.175,88.133,10.211]
[1772779467313,9.5329455,88.194,88.16,2.99322681]
[1772779467612,9.5329455,88.194,88.15,2.99322681]
[1772779468005,9.5329455,88.194,88.147,10.209]
[1772779468313,9.5329455,88.194,88.16,2.99322681]
[1772779469110,2.99322681,88.21,88.16,2.99322681]
[1772779469111,9.51966498,88.192,88.16,2.99322681]
[1772779470413,9.51966498,88.192,88.15,2.99322681]
[1772779471314,9.51966498,88.192,88.074,35.21481326]
[1772779471315,10.59728252,88.216,88.17,2.99322681]
[1772779471617,9.5158791,88.214,88.17,2.99322681]
[1772779471816,9.5158791,88.212,88.17,2.99322681]
[1772779472018,9.5158791,88.21,88.17,2.99322681]
[1772779472315,9.5158791,88.208,88.16,2.99322681]
[1772779472515,9.5158791,88.206,88.16,2.99322681]
[1772779473418,8.38254836,88.205,88.158,10.208]
[1772779473614,9.51106705,88.203,88.16,2.99322681]
[1772779475121,9.51106705,88.203,88.17,2.99322681]
[1772779476023,9.51106705,88.203,88.158,10.208]
[1772779476024,9.51106705,88.203,88.16,2.99322681]
[1772779477023,9.51106705,88.203,88.158,10.208]
[1772779477223,9.51106705,88.203,88.163,10.207]
[1772779479328,18.00182129,88.202,88.163,10.207]
[1772779479524,8.4909676,88.201,88.163,10.207]
[1772779479729,9.51085369,88.201,88.163,10.207]
[1772779481636,9.51085369,88.201,88.151,10.209]
[1772779481834,9.50824591,88.199,88.151,10.209]
[1772779482334,9.50824591,88.199,88.159,10.208]
[1772779484029,9.50824591,88.199,88.16,2.99322681]
[1772779484432,9.50824591,88.199,88.165,10.207]
[1772779489834,9.50824591,88.199,88.161,10.207]
[1772779490438,9.50824591,88.199,88.16,13.20122681]
[1772779491339,9.50824591,88.199,88.167,10.207]
[1772779492536,9.50971634,88.215,88.174,10.206]
[1772779492732,9.50971634,88.213,88.174,10.206]
[1772779492935,9.50638843,88.211,88.174,10.206]
[1772779493138,9.50638843,88.209,88.16,2.99322681]
[1772779493436,9.50638843,88.207,88.15,2.99322681]
[1772779493637,8.48731497,88.206,88.15,2.99322681]
[1772779493835,9.50638843,88.204,88.16,2.99322681]
[1772779494041,9.50638843,88.202,88.161,10.208]
[1772779494241,9.50638843,88.202,88.16,2.99322681]
[1772779495742,9.50638843,88.202,88.161,10.207]
[1772779496541,9.50638843,88.202,88.169,10.207]
[1772779500650,9.50638843,88.202,88.165,10.207]
[1772779501753,9.50765217,88.199,88.13,20.81538845]
[1772779502051,20.396,88.247,88.078,170.311]
[1772779502052,9.50765217,88.208,88.17,2.99322681]
[1772779502248,10.59728252,88.219,88.17,2.99322681]
[1772779502249,8.48593233,88.207,88.17,2.99322681]
[1772779502449,9.50765217,88.219,88.17,2.99322681]
[1772779502650,9.50765217,88.217,88.182,10.205]
[1772779502844,8.48587509,88.216,88.182,10.205]
[1772779503045,9.50765217,88.217,88.182,10.205]
[1772779503244,9.48711196,88.215,88.174,10.206]
[1772779503644,8.48484319,88.214,88.172,10.206]
[1772779503850,9.48711196,88.212,88.172,10.206]
[1772779504853,9.48711196,88.209,88.172,10.206]
[1772779505152,9.53586799,88.207,88.172,10.206]
[1772779511053,9.5332921,88.218,88.18,13.19822681]
[1772779511257,8.51655598,88.217,88.18,13.19822681]
[1772779511460,9.5332921,88.237,88.195,10.204]
[1772779511661,9.5332921,88.235,88.195,10.204]
[1772779511958,8.515853,88.234,88.195,10.204]
[1772779512150,8.515853,88.233,88.195,10.204]
[1772779512356,8.515853,88.232,88.195,10.204]
[1772779512549,8.515853,88.231,88.195,10.204]
[1772779512753,8.515853,88.23,88.195,10.204]
[1772779512961,18.13889035,88.229,88.195,10.204]
[1772779513259,9.62303735,88.228,88.195,10.204]
[1772779518660,9.62303735,88.228,88.187,10.205]
[1772779520062,9.60286471,88.224,88.178,10.205]
[1772779520261,9.60286471,88.219,88.16,2.99322681]
[1772779520864,9.64158001,88.209,88.16,2.99322681]
[1772779521759,9.64158001,88.209,88.172,10.206]
[1772779523265,9.64158001,88.209,88.161,10.208]
[1772779523471,9.6446291,88.208,88.161,10.208]
[1772779524569,9.6446291,88.199,88.161,10.208]
[1772779525275,9.6446291,88.199,88.152,10.209]
[1772779525468,9.64139446,88.179,88.111,20.81538845]
[1772779525672,9.64139446,88.179,88.12,2.99126782]
[1772779526362,9.64139446,88.179,88.13,2.99126782]
[1772779526769,9.64139446,88.179,88.131,10.211]
[1772779526965,9.64139446,88.179,88.13,2.99126782]
[1772779527166,10.59728252,88.209,88.113,11.17317012]
[1772779527167,2.99126782,88.19,88.14,2.99126782]
[1772779527365,9.67343591,88.188,88.14,2.99126782]
[1772779528972,9.67343591,88.188,88.142,10.21]
[1772779531574,10.205,88.187,88.14,2.99126782]
[1772779531880,9.69980698,88.186,88.133,10.211]
[1772779532673,9.69980698,88.18,88.133,10.211]
[1772779532979,9.69980698,88.18,88.14,2.99126782]
[1772779534177,9.69980698,88.18,88.133,10.211]
[1772779535081,9.69404329,88.179,88.133,10.211]
[1772779536483,9.69404329,88.169,88.12,2.99126782]
[1772779537182,9.69404329,88.169,88.13,2.99126782]
[1772779537380,9.69404329,88.169,88.12,2.99126782]
[1772779537579,9.69404329,88.169,88.13,2.99126782]
[1772779538784,9.69404329,88.169,88.132,10.211]
[1772779541784,9.69404329,88.169,88.12,2.99126782]
[1772779542691,9.69404329,88.169,88.13,2.99126782]
[1772779543892,9.69404329,88.169,88.132,10.211]
[1772779548491,9.69404329,88.169,88.121,10.212]
[1772779550593,9.69404329,88.169,88.13,10.211]
[1772779551894,9.69404329,88.169,88.13,13.20226782]
[1772779554198,9.69404329,88.169,88.13,10.211]
[1772779555497,9.69404329,88.169,88.13,13.20226782]
[1772779556104,9.69404329,88.169,88.137,10.21]
[1772779556696,9.71993581,88.183,88.15,2.99126782]
[1772779556901,9.71993581,88.183,88.14,2.99126782]
[1772779557893,9.71993581,88.183,88.144,10.209]
[1772779558706,9.71993581,88.183,88.14,2.99126782]
[1772779558903,9.71993581,88.183,88.136,10.21]
[1772779559499,9.72126872,88.179,88.128,10.211]
[1772779560904,9.72126261,88.169,88.12,2.99126782]
[1772779561100,9.72126261,88.169,88.119,10.212]
[1772779561604,9.72126261,88.169,88.11,2.99126782]
[1772779561605,9.72401409,88.159,88.11,10.213]
[1772779562005,9.72401409,88.159,88.11,13.20426782]
[1772779563911,9.71784546,88.156,88.105,10.214]
[1772779564104,9.71784546,88.156,88.11,2.99126782]
[1772779564300,9.71784546,88.156,88.111,10.213]
[1772779564504,9.71784546,88.156,88.11,2.99126782]
[1772779564705,9.71784546,88.156,88.12,2.99126782]
[1772779570314,9.71784546,88.156,88.122,10.212]
[1772779570511,9.70867293,88.169,88.122,10.212]
[1772779574116,10.207,88.168,88.122,10.212]
[1772779574317,9.70412373,88.167,88.122,10.212]
[1772779574812,10.59728252,88.193,88.098,20.81538845]
[1772779575013,20.399,88.233,88.15,2.99126782]
[1772779575014,8.57159544,88.192,88.15,2.99126782]
[1772779575210,8.57159544,88.191,88.14,2.99126782]
[1772779575408,8.57159544,88.19,88.14,2.99126782]
[1772779575612,8.57159544,88.189,88.14,2.99126782]
[1772779575809,8.57159544,88.188,88.14,2.99126782]
[1772779576018,8.57159544,88.187,88.14,2.99126782]
[1772779576217,8.57159544,88.186,88.14,2.99126782]
[1772779576417,8.57159544,88.185,88.14,2.99126782]
[1772779576719,8.57159544,88.184,88.14,2.99126782]
[1772779576921,4.81331551,88.182,88.14,2.99126782]
[1772779577117,4.81331551,88.18,88.14,2.99126782]
[1772779578520,4.81331551,88.199,88.15,2.99126782]
[1772779578717,4.81331551,88.197,88.14,2.99126782]
[1772779578916,8.5710946,88.198,88.14,2.99126782]
[1772779578917,4.81331551,88.195,88.14,2.99126782]
[1772779579121,4.81329316,88.193,88.14,2.99126782]
[1772779579319,4.81329316,88.191,88.14,2.99126782]
[1772779579520,4.81329316,88.189,88.14,2.99126782]
[1772779579823,4.81329316,88.189,88.144,10.21]
[1772779583319,4.81329316,88.189,88.152,10.209]
[1772779590026,2.99193978,88.2,88.152,10.209]
[1772779590223,4.82131253,88.199,88.16,2.99193978]
[1772779590426,4.82131253,88.199,88.152,10.209]
[1772779593431,4.80094801,88.197,88.14,2.99193978]
[1772779593631,4.80094801,88.195,88.14,2.99193978]
[1772779593932,4.80094801,88.195,88.152,10.209]
[1772779595831,4.80094801,88.195,88.106,20.428]
[1772779595832,4.80094801,88.195,88.16,13.19993978]
[1772779596134,4.80094801,88.195,88.14,2.99193978]
[1772779597929,4.80094801,88.195,88.147,10.209]
[1772779598635,4.79626152,88.189,88.14,2.99193978]
[1772779598931,4.79626152,88.189,88.109,20.81538845]
[1772779599134,4.79626152,88.189,88.15,2.99193978]
[1772779601727,4.79626152,88.189,88.151,10.209]
[1772779602134,4.79626152,88.189,88.15,2.99193978]
[1772779602337,4.79626152,88.189,88.14,2.99193978]
[1772779604038,4.79626152,88.189,88.15,2.99193978]
[1772779604739,4.79626152,88.189,88.155,10.208]
[1772779604939,4.79626152,88.189,88.15,2.99193978]
[1772779605240,4.7386608,88.208,88.15,2.99193978]
[1772779605433,4.7386608,88.206,88.15,2.99193978]
[1772779605842,4.7386608,88.206,88.163,10.207]
[1772779607342,4.74042106,88.204,88.163,10.207]
[1772779608041,4.74042106,88.204,88.17,10.206]
[1772779609442,4.74042106,88.204,88.162,10.207]
[1772779611039,4.73130347,88.215,88.17,2.99193978]
[1772779611240,8.54037109,88.214,88.17,2.99193978]
[1772779611541,8.54037109,88.213,88.17,2.99193978]
[1772779611743,8.54037109,88.212,88.17,2.99193978]
[1772779612038,4.73130347,88.215,88.17,2.99193978]
[1772779612438,4.73130347,88.23,88.18,2.99193978]
[1772779612639,4.73130347,88.228,88.18,2.99193978]
[1772779612841,4.73130347,88.226,88.18,2.99193978]
[1772779613042,4.73493948,88.224,88.182,10.205]
[1772779614243,4.73493948,88.219,88.174,10.206]
[1772779616645,4.73493948,88.219,88.181,10.205]
[1772779617349,7.72743493,88.23,88.181,10.205]
[1772779617647,13.27242618,88.229,88.181,10.205]
[1772779617945,4.73549515,88.229,88.19,2.99193978]
[1772779618147,4.73549515,88.229,88.18,2.99193978]
[1772779618346,4.73549515,88.229,88.143,20.81538845]
[1772779618543,4.73549515,88.229,88.189,10.204]
[1772779620948,4.73549515,88.229,88.192,10.204]
[1772779621348,4.73549515,88.229,88.18,2.99193978]
[1772779621850,4.74652662,88.227,88.171,10.206]
[1772779622051,4.74652662,88.227,88.17,2.99193978]
[1772779622746,4.74652662,88.227,88.179,10.205]
[1772779622948,4.74652662,88.227,88.18,2.99193978]
[1772779623156,4.75668699,88.239,88.19,2.99193978]
[1772779623451,4.75668699,88.237,88.19,2.99193978]
[1772779623651,13.28697243,88.236,88.19,2.99193978]
[1772779623950,4.75668699,88.236,88.19,2.99193978]
[1772779624742,4.75668699,88.236,88.193,10.204]
[1772779624943,4.75661697,88.199,88.137,20.81538845]
[1772779625249,4.75661697,88.199,88.15,2.99193978]
[1772779625453,4.75661697,88.199,88.151,10.209]
[1772779625650,4.75661697,88.199,88.16,2.99193978]
[1772779625851,4.75661697,88.215,88.16,13.19993978]
[1772779626252,4.75661697,88.209,88.16,13.19993978]
[1772779626452,4.75661697,88.199,88.15,2.99193978]
[1772779626649,4.75661697,88.199,88.14,2.99193978]
[1772779627347,4.91193795,88.189,88.14,10.21]
[1772779627655,4.91193795,88.189,88.14,13.20193978]
[1772779628453,4.91193795,88.189,88.14,10.21]
[1772779628654,4.91193795,88.189,88.14,13.20193978]
[1772779629252,4.91193795,88.189,88.151,10.209]
[1772779629450,4.91193795,88.189,88.15,2.99193978]
[1772779629655,4.91193795,88.189,88.14,2.99193978]
[1772779631348,4.91193795,88.189,88.15,2.99193978]
[1772779631954,4.91193795,88.189,88.151,10.209]
[1772779634862,2.99193978,88.2,88.15,2.99193978]
[1772779635067,4.88594605,88.203,88.16,2.99193978]
[1772779635663,4.88594605,88.203,88.163,10.207]
[1772779636870,4.88594605,88.219,88.18,2.99193978]
[1772779637068,4.88772894,88.238,88.19,2.99193978]
[1772779637266,4.88772894,88.236,88.19,2.99193978]
[1772779637462,4.88772894,88.234,88.19,2.99193978]
[1772779637668,13.59717781,88.233,88.19,2.99193978]
[1772779637869,13.59717781,88.232,88.19,2.99193978]
[1772779638170,8.70944887,88.231,88.19,2.99193978]
[1772779638369,8.70944887,88.23,88.19,2.99193978]
[1772779638572,8.70944887,88.229,88.19,2.99193978]
[1772779638770,8.70944887,88.228,88.19,2.99193978]
[1772779638972,4.87527634,88.226,88.121,158.863]
[1772779639171,4.87527634,88.224,88.19,2.99193978]
[1772779639372,4.87527634,88.224,88.186,10.205]
[1772779639672,4.87527634,88.224,88.18,2.99193978]
[1772779639871,4.87527634,88.224,88.19,2.99193978]
[1772779640471,4.87527634,88.224,88.193,10.204]
[1772779644474,4.87527634,88.224,88.18,13.19693978]
[1772779644774,4.87527634,88.224,88.18,10.205]
[1772779644971,4.87527634,88.224,88.18,13.19693978]
[1772779645572,4.85557224,88.219,88.171,10.206]
[1772779645770,4.85557224,88.217,88.171,10.206]
[1772779646074,4.85557224,88.215,88.171,10.206]
[1772779647077,8.71116686,88.214,88.171,10.206]
[1772779647277,4.85581739,88.213,88.171,10.206]
[1772779648376,2.99096064,88.22,88.17,2.99096064]
[1772779648677,8.71282232,88.219,88.17,2.99096064]
[1772779648878,4.85581739,88.217,88.17,2.99096064]
[1772779649875,4.85581739,88.217,88.179,10.205]
[1772779651473,4.85581739,88.217,88.187,10.205]
[1772779652980,4.85581739,88.217,88.179,10.205]
[1772779653180,4.80608736,88.215,88.179,10.205]
[1772779654280,4.80608736,88.239,88.19,2.99096064]
[1772779654476,4.80608736,88.237,88.19,2.99096064]
[1772779654678,8.71513227,88.236,88.19,2.99096064]
[1772779654982,8.71513227,88.235,88.19,2.99096064]
[1772779655181,4.80784098,88.249,88.2,2.99096064]
[1772779655382,20.382,88.305,88.159,20.416]
[1772779655383,13.52150665,88.248,88.159,20.416]
[1772779655582,8.71366567,88.247,88.2,10.203]
[1772779655782,8.71366567,88.246,88.2,2.99096064]
[1772779655981,8.71366567,88.245,88.2,2.99096064]
[1772779656181,8.71366567,88.244,88.2,2.99096064]
[1772779656379,4.80784098,88.251,88.2,2.99096064]
[1772779656580,4.80784098,88.249,88.2,2.99096064]
[1772779656882,4.80784098,88.247,88.208,10.202]
[1772779657071,8.71173248,88.246,88.208,10.202]
[1772779657276,4.8113633,88.244,88.2,2.99096064]
[1772779657472,4.8113633,88.244,88.19,2.99096064]
[1772779657673,4.8113633,88.244,88.2,2.99096064]
[1772779659980,4.8138947,88.259,88.21,2.99096064]
[1772779660177,8.66516077,88.258,88.21,2.99096064]
[1772779660382,8.66516077,88.257,88.21,2.99096064]
[1772779660583,4.8138947,88.259,88.218,10.201]
[1772779660779,4.8138947,88.259,88.2,2.99096064]
[1772779660984,4.8138947,88.249,88.167,20.97207882]
[1772779661284,4.8138947,88.249,88.2,2.99096064]
[1772779661888,4.8138947,88.249,88.201,10.203]
[1772779662487,4.8138947,88.249,88.191,10.204]
[1772779662688,4.8138947,88.249,88.2,2.99096064]
[1772779662983,2.99096064,88.26,88.21,2.99096064]
[1772779662984,4.83653263,88.259,88.21,2.99096064]
[1772779663181,4.83653263,88.259,88.22,2.99096064]
[1772779663379,8.65581373,88.269,88.22,2.99096064]
[1772779663585,4.83653263,88.273,88.22,2.99096064]
[1772779663787,8.65566992,88.272,88.22,2.99096064]
[1772779663981,4.83653263,88.286,88.24,2.99096064]
[1772779664289,4.83653263,88.285,88.23,2.99096064]
[1772779665383,2.99096064,88.28,88.224,10.2]
[1772779665589,4.83993966,88.279,88.23,2.99096064]
[1772779666880,12.55247198,88.321,88.2,2.99096064]
[1772779666881,4.83993966,88.259,88.2,2.99096064]
[1772779667489,4.83993966,88.259,88.202,10.203]
[1772779667882,2.99096064,88.31,88.251,3.15695042]
[1772779668085,2.99096064,88.31,88.254,13.35395042]
[1772779668286,2.99096064,88.31,88.261,3.15695042]
[1772779668482,2.99096064,88.33,88.271,3.15695042]
[1772779668686,10.189,88.326,88.271,3.15695042]
[1772779668991,2.99096064,88.32,88.271,3.15695042]
[1772779669286,2.99096064,88.32,88.273,10.195]
[1772779669592,2.99096064,88.33,88.273,3.22377808]
[1772779669782,3.81810582,88.329,88.273,3.22377808]
[1772779669982,3.81810582,88.319,88.222,3.22377808]
[1772779670286,3.81810582,88.319,88.261,3.22377808]
[1772779670483,3.81810582,88.319,88.27,2.99096064]
[1772779670687,3.81810582,88.319,88.272,10.195]
[1772779670881,3.81810582,88.319,88.273,3.22377808]
[1772779671891,3.81810582,88.319,88.282,10.194]
[1772779672391,3.81810582,88.333,88.283,3.2751671]
[1772779672883,6.80906646,88.33,88.283,3.2751671]
[1772779673087,3.81810582,88.329,88.283,3.2751671]
[1772779673388,10.188,88.327,88.283,3.2751671]
[1772779673595,2.99096064,88.32,88.283,3.2751671]
[1772779673788,3.81810582,88.319,88.276,10.194]
[1772779674390,3.81810582,88.309,88.26,2.99096064]
[1772779674894,3.81810582,88.309,88.261,3.25317921]
[1772779675094,2.99096064,88.32,88.261,3.25317921]
[1772779675290,3.81810582,88.322,88.271,3.25317921]
[1772779675789,3.81810582,88.322,88.222,11.51638355]
[1772779675790,3.81810582,88.322,88.281,3.25317921]
[1772779675994,3.81810582,88.322,88.273,10.195]
[1772779676893,2.99096064,88.32,88.273,10.195]
[1772779677095,6.80906646,88.32,88.273,10.195]
[1772779677798,6.80906646,88.32,88.273,13.40506961]
[1772779678091,3.81810582,88.32,88.273,13.40506961]
[1772779678287,3.81810582,88.32,88.276,3.21006961]
[1772779678997,3.81810582,88.319,88.276,3.21006961]
[1772779680589,2.99096064,88.33,88.277,3.20277115]
[1772779680792,3.99000499,88.329,88.277,3.20277115]
[1772779680992,3.99000499,88.329,88.281,10.194]
[1772779681194,3.99000499,88.329,88.281,13.39781271]
[1772779681393,3.99000499,88.329,88.282,3.20381271]
[1772779681998,3.99000499,88.309,88.266,3.20381271]
[1772779682799,3.99000499,88.309,88.268,10.195]
[1772779683201,3.99000499,88.309,88.268,13.38307598]
[1772779684205,3.99000499,88.309,88.268,3.18807598]
[1772779686902,3.99000499,88.329,88.281,3.19027336]
[1772779687107,3.99000499,88.329,88.271,3.32125884]
[1772779687407,6.98096563,88.32,88.271,3.32125884]
[1772779687911,3.99000499,88.309,88.271,3.32125884]
[1772779688099,3.99000499,88.309,88.26,2.99096064]
[1772779688304,3.99000499,88.309,88.261,3.32125884]
[1772779688506,3.99000499,88.309,88.263,3.32125884]
[1772779689310,3.99000499,88.309,88.265,3.32646368]
[1772779689509,2.99096064,88.32,88.271,3.32646368]
[1772779689809,1.9708395,88.361,88.222,11.51638355]
[1772779689810,3.99000499,88.36,88.282,10.194]
[1772779690009,3.99000499,88.348,88.291,3.32646368]
[1772779690210,3.99000499,88.348,88.31,2.99096064]
[1772779690413,3.99000499,88.366,88.311,3.32646368]
[1772779690713,3.99000499,88.366,88.32,2.99096064]
[1772779690921,6.98096563,88.36,88.311,3.32646368]
[1772779691121,3.99000499,88.36,88.32,2.99096064]
[1772779691423,3.99000499,88.36,88.311,3.32646368]
[1772779691823,3.99000499,88.36,88.32,2.99096064]
[1772779692215,3.99000499,88.359,88.311,3.32646368]
[1772779698930,3.99000499,88.359,88.313,10.19]
[1772779699725,3.99000499,88.359,88.314,3.33824729]
[1772779699930,3.99000499,88.376,88.32,2.99096064]
[1772779700131,3.99000499,88.376,88.321,3.33824729]
[1772779700626,3.99000499,88.376,88.33,2.99096064]
[1772779700824,3.99000499,88.389,88.341,3.33824729]
[1772779702031,3.99000499,88.389,88.342,3.3344843]
[1772779702331,3.99000499,88.386,88.342,3.3344843]
[1772779704026,10.18,88.397,88.351,3.32790055]
[1772779705028,3.99000499,88.4,88.361,3.42606578]
[1772779705332,18.17296392,88.408,88.371,3.42606578]
[1772779705830,3.99000499,88.407,88.351,10.186]
[1772779706031,3.99000499,88.407,88.352,3.42606578]
[1772779706831,3.99000499,88.407,88.355,10.185]
[1772779707033,3.99000499,88.407,88.36,2.99096064]
[1772779707229,3.99000499,88.407,88.36,6.44414086]
[1772779707535,18.17296392,88.408,88.371,3.45318022]
[1772779708034,3.99000499,88.439,88.39,2.99096064]
[1772779708536,3.99000499,88.439,88.381,3.4522163]
[1772779708731,3.99000499,88.429,88.383,10.182]
[1772779709034,1.96839816,88.467,88.366,3.4522163]
[1772779709035,3.99000499,88.419,88.366,3.4522163]
[1772779709333,9.09005696,88.464,88.309,158.524]
[1772779709334,3.99000499,88.435,88.372,3.48910137]
[1772779709533,3.99000499,88.435,88.327,20.377]